fUST/lending_fUST_20240618
["ID","MTS","AMOUNT","RATE_DAILY","PERIOD"]
[329811839,1718691040391,-500.0,0.00019785,2]
[329811841,1718691040400,-1000.0,0.00019831,2]
[329811843,1718691040411,-869.04,0.00019887,2]
[329811845,1718691040421,-500.0,0.00019887,2]
[329811847,1718691040431,-1023.62,0.00019999,2]
[329811849,1718691040440,-500.0,0.00019999,2]
[329811851,1718691040450,-500.0,0.00019999,2]
[329811853,1718691040460,-5459.44368757,0.0002,2]
[329811855,1718691040469,-225.25685943,0.0002,2]
[329811857,1718691040479,-45196.87847528,0.0002,2]
[329811859,1718691040488,-500.0,0.00020059,2]
[329811861,1718691040498,-500.0,0.00020059,2]
[329811863,1718691040508,-500.0,0.00020059,2]
[329811865,1718691040517,-196.1,0.00020059,2]
[329811867,1718691040528,-500.0,0.00020059,2]
[329811869,1718691040538,-155.0,0.0002012,5]
[329811871,1718691040547,-869.04,0.00020161,2]
[329811873,1718691040557,-500.0,0.00020161,2]
[329811875,1718691040568,-475.01503593,0.00020173,2]
[329811877,1718691040577,-587.5893695,0.00020176,2]
[329811879,1718691040587,-205.5620548,0.00020176,2]
[329811881,1718691040596,-205.5620548,0.00020176,2]
[329811883,1718691040606,-205.5620548,0.00020176,2]
[329811885,1718691040615,-205.5620548,0.00020176,2]
[329811887,1718691040624,-153.0,0.00020176,2]
[329811889,1718691040634,-205.5620548,0.00020176,2]
[329811891,1718691040644,-153.0,0.00020176,2]
[329811893,1718691040653,-153.0,0.00020176,2]
[329811895,1718691040663,-408.4840732,0.00020176,2]
[329811897,1718691040672,-153.0,0.00020176,2]
[329811899,1718691040682,-153.0,0.00020176,2]
[329811901,1718691040692,-227.1115978,0.00020176,2]
[329811903,1718691040701,-2196.84858078,0.00020197,2]
[329811907,1718691040733,500.0,0.00017969,2]
[329811912,1718691040768,500.0,0.00018243,2]
[329811954,1718691041174,-419.84463997,0.00018517,2]
[329811957,1718691041186,-80.15536003,0.00018517,2]
[329811959,1718691041196,-500.0,0.00018791,2]
[329811961,1718691041205,-500.0,0.00019065,2]
[329811963,1718691041215,-181.98,0.00019339,2]
[329811964,1718691041224,-1961.86463997,0.00020197,2]
[329811967,1718691041237,-1113.25348748,0.00020197,2]
[329811969,1718691041247,-1023.62,0.00020273,2]
[329811971,1718691041256,-151.0,0.000203,2]
[329811973,1718691041267,-160.0,0.000203,2]
[329811975,1718691041276,-500.0,0.00020333,2]
[329811977,1718691041286,-500.0,0.00020333,2]
[329811979,1718691041296,-500.0,0.00020333,2]
[329811981,1718691041306,-500.0,0.00020333,2]
[329811983,1718691041317,-2837.45708095,0.00020367,2]
[329811985,1718691041327,-151.0,0.00020409,2]
[329811987,1718691041336,-869.04,0.00020435,2]
[329811989,1718691041345,-500.0,0.00020435,2]
[329811991,1718691041355,-1023.62,0.00020547,2]
[329811993,1718691041363,-500.0,0.00020607,2]
[329811995,1718691041373,-500.0,0.00020607,2]
[329811997,1718691041382,-500.0,0.00020607,2]
[329811999,1718691041391,-235.36064451,0.00020607,2]
[329812001,1718691041400,-869.04,0.00020709,2]
[329812003,1718691041409,-500.0,0.00020709,2]
[329812005,1718691041419,-1023.62,0.00020821,2]
[329812007,1718691041428,-432.95857979,0.00020824,2]
[329812009,1718691041437,-306.0,0.00020865,2]
[329812011,1718691041446,-500.0,0.00020881,2]
[329812013,1718691041457,-500.0,0.00020881,2]
[329812015,1718691041470,-500.0,0.00020881,2]
[329812017,1718691041479,-869.04,0.00020983,2]
[329812019,1718691041489,-500.0,0.00020983,2]
[329812021,1718691041499,-153.0,0.00021041,2]
[329812023,1718691041508,-1023.62,0.00021095,2]
[329812025,1718691041517,-593.0,0.000211,2]
[329812027,1718691041526,-151.0,0.00021104,3]
[329812029,1718691041536,-369.88406687,0.00021155,2]
[329812288,1718691044039,-129.88650654,0.00018984,2]
[329812501,1718691047249,-680.47349346,0.00018984,2]
[329812503,1718691047258,-810.36,0.00019258,2]
[329812505,1718691047268,-768.4316638,0.00019532,2]
[329812591,1718691063711,1000.0,0.00026,60]
[329812592,1718691145853,500.0,0.00016472,2]
[329812593,1718691614582,5999.0,0.0002,30]
[329812594,1718691782964,1185.657,0.00018,10]
[329812596,1718692029192,-400.34009017,0.00016377,2]
[329812597,1718692035459,-257.67218555,0.00016377,2]
[329812598,1718692037115,-963.55636779,0.00016377,2]
[329812599,1718692150423,-2566.74173733,0.00016377,2]
[329812600,1718692150443,-1356.61976056,0.00016378,2]
[329812601,1718692150468,-208.55761253,0.00016379,2]
[329812602,1718692150492,-300.0,0.0001638,2]
[329812603,1718692150514,-287.0,0.0001638,2]
[329812604,1718692150535,-4203.05208863,0.00016381,2]
[329812605,1718692151754,-20696.94791137,0.00016381,2]
[329812606,1718692151775,-379.85401235,0.00016437,2]
[329812607,1718692151795,-175.3108034,0.00016472,2]
[329812608,1718692151840,-328.17699765,0.00016472,2]
[329812609,1718692151861,-548.22593488,0.00016472,2]
[329812610,1718692151890,-500.0,0.00016472,2]
[329812611,1718692151911,-500.0,0.00016472,2]
[329812612,1718692151934,-500.0,0.00016472,2]
[329812613,1718692151956,-500.0,0.00016472,2]
[329812614,1718692151978,-275.88537646,0.000165,2]
[329812615,1718692151999,-500.0,0.00016746,2]
[329812616,1718692152020,-500.0,0.00016746,2]
[329812617,1718692152041,-500.0,0.00016746,2]
[329812618,1718692152062,-500.0,0.00016985,2]
[329812619,1718692152084,-500.0,0.00016985,2]
[329812620,1718692152107,-500.0,0.00016985,2]
[329812621,1718692152133,-500.0,0.00016985,2]
[329812622,1718692152280,-500.0,0.0001702,2]
[329812623,1718692152302,-500.0,0.0001702,2]
[329812624,1718692152324,-500.0,0.00017259,2]
[329812625,1718692152347,-1246.92,0.00017292,2]
[329812626,1718692152374,-500.0,0.00017292,2]
[329812627,1718692152397,-551.11639649,0.00017292,2]
[329812628,1718692152418,-500.0,0.00017292,2]
[329812629,1718692152440,-500.0,0.00017292,2]
[329812630,1718692152461,-500.0,0.00017293,2]
[329812631,1718692152488,-500.0,0.00017293,2]
[329812632,1718692152511,-500.0,0.00017533,2]
[329812633,1718692152535,-1246.92,0.00017566,2]
[329812634,1718692152559,-500.0,0.00017566,2]
[329812635,1718692152582,-500.0,0.00017566,2]
[329812636,1718692152604,-500.0,0.00017567,2]
[329812637,1718692152631,-500.0,0.00017567,2]
[329812638,1718692152653,-500.0,0.00017807,2]
[329812639,1718692152675,-1246.92,0.0001784,2]
[329812640,1718692152698,-500.0,0.0001784,2]
[329812641,1718692152721,-500.0,0.0001784,2]
[329812642,1718692152742,-500.0,0.00017841,2]
[329812643,1718692152762,-500.0,0.00017841,2]
[329812644,1718692152784,-500.0,0.00017981,2]
[329812645,1718692152805,-516.71302608,0.00017981,2]
[329812646,1718692152825,-501.25766984,0.00017981,2]
[329812647,1718692152847,-500.0,0.00017981,2]
[329812648,1718692152876,-500.0,0.00017981,2]
[329812649,1718692152899,-500.0,0.00017981,2]
[329812650,1718692152922,-500.0,0.00017981,2]
[329812651,1718692152944,-535.4504659,0.00017981,2]
[329812652,1718692152967,-500.0,0.00017981,2]
[329812653,1718692152989,-500.0,0.00017981,2]
[329812654,1718692153012,-500.0,0.00017981,2]
[329812655,1718692153038,-500.0,0.00017981,2]
[329812656,1718692153060,-216.4792899,0.00018015,2]
[329812657,1718692153082,-500.0,0.00018081,2]
[329812658,1718692153104,-1246.92,0.00018114,2]
[329812659,1718692153133,-500.0,0.00018114,2]
[329812660,1718692153155,-500.0,0.00018114,2]
[329812661,1718692153175,-500.0,0.00018115,2]
[329812662,1718692153196,-519.76480088,0.00018115,2]
[329812663,1718692153218,-500.0,0.00018255,2]
[329812664,1718692153241,-500.0,0.00018255,2]
[329812665,1718692153264,-500.0,0.00018255,2]
[329812666,1718692153286,-500.0,0.00018255,2]
[329812667,1718692153309,-500.0,0.00018255,2]
[329812668,1718692153330,-500.0,0.00018255,2]
[329812669,1718692153353,-500.0,0.00018255,2]
[329812670,1718692153382,-500.0,0.00018255,2]
[329812671,1718692153409,-500.0,0.00018355,2]
[329812672,1718692153431,-1246.92,0.00018388,2]
[329812673,1718692153452,-500.0,0.00018388,2]
[329812674,1718692153475,-500.0,0.00018388,2]
[329812675,1718692153500,-500.0,0.00018415,2]
[329812676,1718692153522,-500.0,0.00018529,2]
[329812677,1718692153547,-500.0,0.00018529,2]
[329812678,1718692153577,-500.0,0.00018529,2]
[329812679,1718692153599,-500.0,0.00018529,2]
[329812680,1718692153624,-500.0,0.00018529,2]
[329812681,1718692153646,-500.0,0.00018529,2]
[329812682,1718692153667,-500.0,0.00018529,2]
[329812683,1718692153703,500.0,0.00017981,2]
[329812684,1718692153732,500.0,0.00018255,2]
[329812685,1718692153765,500.0,0.00018529,2]
[329812686,1718692169674,500.0,0.00017981,2]
[329812687,1718692169947,500.0,0.00018255,2]
[329812688,1718692170212,500.0,0.00018529,2]
[329812689,1718692188843,638.39656223,0.00017292,2]
[329812690,1718692193040,500.0,0.00017981,2]
[329812691,1718692193308,500.0,0.00018255,2]
[329812692,1718692193569,500.0,0.00018529,2]
[329812693,1718692206488,410.8724203,0.00017532,2]
[329812694,1718692210844,987.14,0.00017532,2]
[329812695,1718692210966,500.0,0.00017981,2]
[329812696,1718692211116,987.14,0.00017806,2]
[329812697,1718692211259,500.0,0.00018255,2]
[329812698,1718692211401,987.14,0.0001808,2]
[329812699,1718692211527,500.0,0.00018529,2]
[329812700,1718692211803,987.14,0.00018354,2]
[329812728,1718692233081,-913.24602737,0.00018628,2]
[329812821,1718692240521,-366.9491391,0.00018628,2]
[329812822,1718692240533,-987.14,0.00018628,2]
[329812823,1718692240546,-500.0,0.00018662,2]
[329812824,1718692240558,-500.0,0.00018662,2]
[329812825,1718692240570,-500.0,0.00018689,2]
[329812826,1718692240582,-275.7555891,0.00018802,2]
[329812827,1718692240598,-979.31855522,0.00018802,2]
[329812828,1718692240612,-376.64231224,0.00018802,2]
[329812829,1718692240625,-500.0,0.00018803,2]
[329812830,1718692240637,-500.0,0.00018803,2]
[329812831,1718692240649,-320.21256655,0.00018803,2]
[329812837,1718692241733,-179.78743345,0.00018803,2]
[329812838,1718692241743,-124.92624899,0.00018803,2]
[329812895,1718692245017,-375.07375101,0.00018803,2]
[329812897,1718692245028,-500.0,0.00018803,2]
[329812898,1718692245038,-500.0,0.00018803,2]
[329812900,1718692245050,-500.0,0.00018803,2]
[329812902,1718692245060,-500.0,0.00018803,2]
[329812904,1718692245072,-500.0,0.00018803,2]
[329812906,1718692245083,-500.0,0.00018803,2]
[329812907,1718692245095,-150.0,0.000189,2]
[329812909,1718692245106,-987.14,0.00018902,2]
[329812911,1718692245118,-500.0,0.00018936,2]
[329812913,1718692245129,-500.0,0.00018963,2]
[329812914,1718692245140,-1924.48294577,0.00019064,2]
[329812916,1718692245149,-500.0,0.00019077,2]
[329812918,1718692245160,-500.0,0.00019077,2]
[329812919,1718692245172,-500.0,0.00019077,2]
[329812920,1718692245183,-500.0,0.00019077,2]
[329812921,1718692245195,-500.0,0.00019077,2]
[329812922,1718692245206,-500.0,0.00019077,2]
[329812923,1718692245216,-500.0,0.00019077,2]
[329812924,1718692245227,-500.0,0.00019077,2]
[329812925,1718692245237,-500.0,0.00019077,2]
[329812926,1718692245247,-500.0,0.00019077,2]
[329812927,1718692245258,-987.14,0.00019176,2]
[329812928,1718692245269,-265.6495981,0.00019178,2]
[329812929,1718692245281,-165.966686,0.00019178,2]
[329812930,1718692245292,-590.08,0.0001921,2]
[329812931,1718692245303,-500.0,0.00019237,2]
[329812932,1718692245313,-500.0,0.00019294,2]
[329812933,1718692245323,-457.40852439,0.00019295,2]
[329812934,1718692245335,-505.85162402,0.00019295,2]
[329812935,1718692245346,-525.85647895,0.00019295,2]
[329812936,1718692245357,-500.0,0.00019295,2]
[329812937,1718692245367,-500.0,0.00019295,2]
[329812938,1718692245378,-404.15589943,0.00019295,2]
[329812939,1718692245388,-500.0,0.00019295,2]
[329812940,1718692245399,-505.38974209,0.00019295,2]
[329812941,1718692245410,-575.48085639,0.00019295,2]
[329812942,1718692245420,-153.0,0.00019325,2]
[329812943,1718692245431,-153.0,0.00019325,2]
[329812944,1718692245443,-153.0,0.00019325,2]
[329812945,1718692245454,-153.0,0.00019325,2]
[329812946,1718692245465,-153.0,0.00019325,2]
[329812947,1718692245475,-153.0,0.00019325,2]
[329812948,1718692245486,-1619.92,0.00019326,2]
[329812949,1718692245496,-500.0,0.00019351,2]
[329812950,1718692245509,-500.0,0.00019351,2]
[329812951,1718692245520,-500.0,0.00019351,2]
[329812952,1718692245530,-500.0,0.00019351,2]
[329812953,1718692245540,-500.0,0.00019351,2]
[329812954,1718692245551,-500.0,0.00019351,2]
[329812955,1718692245561,-500.0,0.00019351,2]
[329812956,1718692245571,-500.1,0.00019351,2]
[329812957,1718692245583,-500.0,0.00019351,2]
[329812958,1718692245594,-500.0,0.00019351,2]
[329812959,1718692245604,-153.0,0.00019407,2]
[329812960,1718692245614,-153.0,0.00019407,2]
[329812961,1718692245624,-153.0,0.00019407,2]
[329812962,1718692245634,-153.0,0.00019407,2]
[329812963,1718692245646,-153.0,0.00019407,2]
[329812964,1718692245656,-153.0,0.00019407,2]
[329812965,1718692245667,-153.0,0.00019408,2]
[329812966,1718692245677,-153.0,0.00019408,2]
[329812967,1718692245688,-153.0,0.00019408,2]
[329812968,1718692245700,-153.0,0.00019408,2]
[329812969,1718692245710,-153.0,0.00019408,2]
[329812970,1718692245719,-153.0,0.00019408,2]
[329812971,1718692245730,-153.0,0.00019408,2]
[329812972,1718692245741,-153.0,0.00019408,2]
[329812973,1718692245893,-153.0,0.00019408,2]
[329812974,1718692245907,-153.0,0.00019408,2]
[329812975,1718692245917,-987.14,0.0001945,2]
[329812976,1718692245927,-500.0,0.00019511,2]
[329812977,1718692245937,-500.0,0.00019569,2]
[329812978,1718692245948,-1619.92,0.000196,2]
[329812979,1718692245957,-500.0,0.00019625,2]
[329812980,1718692245966,-500.0,0.00019625,2]
[329812981,1718692245976,-500.0,0.00019625,2]
[329812982,1718692245985,-522.81183616,0.00019625,2]
[329812983,1718692245994,-500.0,0.00019625,2]
[329812984,1718692246005,-500.0,0.00019625,2]
[329812985,1718692246016,-500.0,0.00019625,2]
[329812986,1718692246028,-500.0,0.00019625,2]
[329812987,1718692246037,-987.14,0.00019724,2]
[329812988,1718692246046,-500.0,0.00019785,2]
[329812989,1718692246057,-500.0,0.00019843,2]
[329812990,1718692246066,-1619.92,0.00019874,2]
[329812991,1718692246075,-500.0,0.00019899,2]
[329812992,1718692246084,-500.0,0.00019899,2]
[329812993,1718692246095,-500.0,0.00019899,2]
[329812994,1718692246105,-500.0,0.00019899,2]
[329812995,1718692246114,-500.0,0.00019899,2]
[329812996,1718692246123,-500.0,0.00019899,2]
[329812997,1718692246133,-500.0,0.00019899,2]
[329812998,1718692246143,-10380.62241226,0.000199,2]
[329812999,1718692246152,-987.14,0.00019998,2]
[329813000,1718692246161,-500.0,0.00019999,2]
[329813001,1718692246170,-232.42720339,0.0002,2]
[329813002,1718692246180,-225.25685943,0.0002,2]
[329813003,1718692246189,-500.0,0.00020117,2]
[329813004,1718692246199,-1619.92,0.00020148,2]
[329813005,1718692246209,-500.0,0.00020173,2]
[329813006,1718692246218,-500.0,0.00020173,2]
[329813007,1718692246228,-500.0,0.00020173,2]
[329813008,1718692246238,-500.0,0.00020173,2]
[329813009,1718692246247,-500.0,0.00020173,2]
[329813010,1718692246256,-500.0,0.00020173,2]
[329813011,1718692246267,-500.0,0.00020173,2]
[329813012,1718692246277,-987.14,0.00020272,2]
[329813013,1718692246287,-500.0,0.00020391,2]
[329813014,1718692246296,-155.0,0.000204,5]
[329813015,1718692246305,-1619.92,0.00020422,2]
[329813016,1718692246315,-500.0,0.00020447,2]
[329813017,1718692246324,-419.4,0.00020447,2]
[329813018,1718692246334,-500.0,0.00020447,2]
[329813019,1718692246344,-500.0,0.00020447,2]
[329813020,1718692246353,-500.0,0.00020447,2]
[329813021,1718692246363,-500.0,0.00020447,2]
[329813022,1718692246372,-500.0,0.00020447,2]
[329813023,1718692246381,-987.14,0.00020546,2]
[329813024,1718692246391,-500.0,0.00020665,2]
[329813025,1718692246400,-1619.92,0.00020696,2]
[329813026,1718692246410,-593.0,0.000207,2]
[329813027,1718692246419,-500.0,0.00020721,2]
[329813028,1718692246428,-500.0,0.00020721,2]
[329813029,1718692246438,-500.0,0.00020721,2]
[329813030,1718692246449,-500.0,0.00020721,2]
[329813031,1718692246458,-500.0,0.00020721,2]
[329813032,1718692246468,-500.0,0.00020721,2]
[329813033,1718692246478,-987.14,0.0002082,2]
[329813034,1718692246487,-5271.96670823,0.00020831,2]
[329813035,1718692246497,-150.0,0.00020867,2]
[329813036,1718692246507,-500.0,0.00020939,2]
[329813037,1718692246520,-1619.92,0.0002097,2]
[329813038,1718692246530,-500.0,0.00020995,2]
[329813039,1718692246539,-500.0,0.00020995,2]
[329813040,1718692246550,-353.55,0.00020995,2]
[329813041,1718692246559,-500.0,0.00020995,2]
[329813042,1718692246569,-500.0,0.00020995,2]
[329813043,1718692246579,-500.0,0.00020995,2]
[329813046,1718692246589,-500.0,0.00020999,2]
[329813047,1718692246599,-1000.0,0.00021,21]
[329813048,1718692246608,-153.0,0.00021,2]
[329813049,1718692246617,-155.9766884,0.00021,2]
[329813050,1718692246626,-292.8069666,0.00021,2]
[329813051,1718692246636,-205.5620548,0.00021,2]
[329813052,1718692246645,-153.0,0.00021,2]
[329813053,1718692246654,-153.0,0.00021,2]
[329813054,1718692246663,-153.0,0.00021,2]
[329813055,1718692246673,-205.5620548,0.00021,2]
[329813056,1718692246682,-153.0,0.00021,2]
[329813057,1718692246693,-292.8069666,0.00021,2]
[329813058,1718692246702,-153.0,0.00021,2]
[329813059,1718692246711,-153.0,0.00021,2]
[329813060,1718692246721,-153.0,0.00021,2]
[329813061,1718692246730,-205.5620548,0.00021,2]
[329813062,1718692246739,-292.8069666,0.00021,2]
[329813063,1718692246749,-205.5620548,0.00021,2]
[329813064,1718692246758,-153.0,0.00021,2]
[329813065,1718692246767,-306.0,0.00021,2]
[329813066,1718692246776,-306.0,0.00021,2]
[329813067,1718692246786,-153.0,0.00021,2]
[329813068,1718692246798,-153.0,0.00021,2]
[329813069,1718692246814,-306.5596307,0.00021,2]
[329813070,1718692246824,-153.0,0.00021,2]
[329813071,1718692246834,-306.0,0.00021,2]
[329813072,1718692246843,-153.0,0.00021,2]
[329813073,1718692246852,-153.0,0.00021,2]
[329813074,1718692246862,-153.0,0.00021,2]
[329813075,1718692246872,-307.4599378,0.00021,2]
[329813076,1718692246882,-153.0,0.00021,2]
[329813077,1718692246892,-205.5620548,0.00021,2]
[329813078,1718692246911,-205.377451,0.00021,2]
[329813079,1718692246929,-153.0,0.00021,2]
[329813080,1718692246939,-292.8069666,0.00021,2]
[329813081,1718692246951,-153.0,0.00021,2]
[329813082,1718692246960,-705.6908145,0.00021,2]
[329813083,1718692246970,-153.0,0.00021,2]
[329813084,1718692246979,-987.14,0.00021094,2]
[329813085,1718692246989,-160.0,0.000211,2]
[329813086,1718692246998,-500.0,0.00021213,2]
[329813087,1718692247008,-1619.92,0.00021244,2]
[329813088,1718692247018,-500.0,0.00021269,2]
[329813089,1718692247027,-500.0,0.00021269,2]
[329813090,1718692247036,-500.0,0.00021269,2]
[329813091,1718692247046,-500.0,0.00021269,2]
[329813092,1718692247055,-500.0,0.00021269,2]
[329813093,1718692247065,-987.14,0.00021368,2]
[329813094,1718692247074,-500.0,0.00021487,2]
[329813095,1718692247084,-1619.92,0.00021518,2]
[329813096,1718692247094,-500.0,0.00021543,2]
[329813097,1718692247103,-500.0,0.00021543,2]
[329813098,1718692247113,-500.0,0.00021543,2]
[329813099,1718692247123,-500.0,0.00021543,2]
[329813100,1718692247132,-495.61620389,0.00021543,2]
[329813101,1718692247142,-194.0,0.0002161,8]
[329813102,1718692247151,-987.14,0.00021642,2]
[329813103,1718692247160,-500.0,0.00021761,2]
[329813104,1718692247170,-1751.0,0.00021783,2]
[329813105,1718692247179,-1619.92,0.00021792,2]
[329813106,1718692247189,-500.0,0.00021817,2]
[329813107,1718692247200,-500.0,0.00021817,2]
[329813108,1718692247209,-500.0,0.00021817,2]
[329813109,1718692247218,-435.02810941,0.00021817,2]
[329813110,1718692247227,-151.0,0.00021819,3]
[329813111,1718692247236,-153.0,0.00021824,2]
[329813112,1718692247245,-153.0,0.00021824,2]
[329813113,1718692247255,-153.0,0.00021824,2]
[329813114,1718692247264,-153.0,0.00021824,2]
[329813115,1718692247274,-310.1024178,0.00021824,2]
[329813116,1718692247283,-456.6691874,0.00021824,2]
[329813117,1718692247293,-205.5620548,0.00021824,2]
[329813118,1718692247303,-216.47928989,0.000219,2]
[329813119,1718692247312,-71497.50927253,0.000219,3]
[329813120,1718692248119,-9737.15702667,0.000219,3]
[329813121,1718692253772,500.0,0.00017292,2]
[329813122,1718692254087,500.0,0.00017566,2]
[329813123,1718692254542,500.0,0.0001784,2]
[329813124,1718692254850,500.0,0.00018114,2]
[329813125,1718692255223,500.0,0.00018388,2]
[329813126,1718692284371,500.0,0.00017292,2]
[329813127,1718692284646,500.0,0.00017566,2]
[329813128,1718692285056,500.0,0.0001784,2]
[329813129,1718692285331,500.0,0.00018114,2]
[329813130,1718692285603,500.0,0.00018388,2]
[329813131,1718692286454,723.18687922,9.999e-05,2]
[329813132,1718692323095,282.79394345,9.999e-05,2]
[329813134,1718692382939,1372.80151656,9.999e-05,2]
[329813145,1718692414833,10000.0,0.00026,60]
[329813150,1718692424909,1582.54864688,0.0001,2]
[329813152,1718692441369,6234.93,0.00026,60]
[329813154,1718692456738,-160.0,0.00027827,30]
[329813155,1718692456764,-508.92465316,0.00027827,30]
[329813156,1718692456789,-1327.27553893,0.00027827,30]
[329813157,1718692456814,-1168.24142809,0.00027827,30]
[329813158,1718692456839,-229.168988,0.00027827,30]
[329813159,1718692456863,-1699.61077154,0.00027827,30]
[329813160,1718692456888,-832.87970654,0.00027827,30]
[329813161,1718692456914,-894073.89891374,0.00027827,30]
[329813162,1718692463953,-1894714.11994766,0.00027827,30]
[329813163,1718692463980,-2735.0,0.00027827,30]
[329813164,1718692464007,-98297.33,0.00027827,30]
[329813165,1718692464033,-340000.0,0.00027827,30]
[329813166,1718692464059,-2664.16072742,0.00027827,30]
[329813167,1718692464087,-19440.9269442,0.00027827,30]
[329813168,1718692464118,-766.18282505,0.00027827,120]
[329813169,1718692464145,-467.4136093,0.00027827,120]
[329813170,1718692464172,-1045.2671344,0.00027827,120]
[329813171,1718692464199,-173.50426038,0.00027827,120]
[329813172,1718692464225,-200.38416612,0.00027827,60]
[329813173,1718692464252,-250.34243798,0.00027827,120]
[329813174,1718692464278,-881.86459237,0.00027827,120]
[329813175,1718692464305,-415789.09471283,0.00027827,120]
[329813176,1718692464332,-70786.0,0.00027827,32]
[329813177,1718692464358,-1675.23418318,0.00027827,120]
[329813178,1718692464385,-218.33,0.00027827,120]
[329813179,1718692464411,-1138.03214825,0.00027827,120]
[329813180,1718692464440,-446.085525,0.00027827,120]
[329813181,1718692464465,-1167.39353162,0.00027827,30]
[329813182,1718692464492,-152.56454205,0.00027827,30]
[329813183,1718692464518,-152.56454205,0.00027827,30]
[329813184,1718692464545,-152.56454205,0.00027827,30]
[329813185,1718692464572,-152.56454205,0.00027827,30]
[329813186,1718692464604,-152.56454205,0.00027827,30]
[329813187,1718692464633,-152.56454205,0.00027827,30]
[329813188,1718692464662,-152.56454205,0.00027827,30]
[329813189,1718692464687,-152.56454205,0.00027827,30]
[329813190,1718692464715,-152.56454205,0.00027827,30]
[329813191,1718692464741,-152.56454205,0.00027827,30]
[329813192,1718692464767,-152.56454205,0.00027827,30]
[329813193,1718692464795,-152.56454205,0.00027827,30]
[329813194,1718692464821,-152.56454205,0.00027827,30]
[329813195,1718692464846,-152.56454205,0.00027827,30]
[329813196,1718692464873,-152.56454205,0.00027827,30]
[329813197,1718692464898,-152.56454205,0.00027827,30]
[329813198,1718692464925,-152.56454205,0.00027827,30]
[329813199,1718692464951,-152.56454205,0.00027827,30]
[329813200,1718692464976,-152.56454205,0.00027827,30]
[329813201,1718692465004,-152.56454205,0.00027827,30]
[329813202,1718692465030,-152.56454215,0.00027827,30]
[329813207,1718692477270,524.9323134,9.999e-05,2]
[329813209,1718692483783,-10000.0,0.000228,30]
[329813210,1718692483811,-267.3,0.000233,31]
[329813211,1718692483836,-267.3,0.000233,31]
[329813212,1718692483859,-267.3,0.000233,31]
[329813213,1718692483882,-267.3,0.000233,31]
[329813214,1718692483907,-267.3,0.000233,31]
[329813215,1718692483934,-267.3,0.000233,31]
[329813216,1718692483961,-267.3,0.000233,31]
[329813217,1718692483986,-267.3,0.000233,31]
[329813218,1718692484010,-267.3,0.000233,31]
[329813219,1718692484034,-267.3,0.000233,31]
[329813220,1718692484058,-267.3,0.000233,31]
[329813221,1718692484082,-267.3,0.000233,31]
[329813222,1718692484106,-267.3,0.000233,31]
[329813223,1718692484129,-267.3,0.000233,31]
[329813224,1718692484152,-267.3,0.000233,31]
[329813225,1718692484177,-267.3,0.000233,31]
[329813226,1718692484203,-267.3,0.000233,31]
[329813227,1718692484227,-267.3,0.000233,31]
[329813228,1718692484251,-267.3,0.000233,31]